[Event "Vienna Championship 2022"]
[Site "Vienna"]
[Date "2022.09.19"]
[Round "3.4"]
[White "Stanec, Nikolaus"]
[Black "Kruckenhauser, Arthur"]
[Result "1-0"]
[ECO "B25"]
[WhiteElo "2458"]
[BlackElo "2289"]
[Annotator "TA"]
[PlyCount "89"]
[EventDate "2022.09.17"]
[EventType "tourn"]
[EventCountry "AUT"]
[SourceTitle "playchess.com"]
[Source "ChessBase"]
[SourceQuality "1"]
[TimeControl "5400+30"]

{[%evp 19,89,-14,-12,-31,-24,-32,0,0,0,0,0,0,0,0,0,10,6,0,7,0,3,7,8,4,15,0,0,0,0,0,6,0,26,25,16,7,81,83,141,137,142,137,188,189,171,171,227,218,247,221,228,194,202,202,202,202,189,150,1058,1051,1047,1023,1013,983,967,918,1512,1414,29987,29983,29990,29986]} 1. Nf3 {[%emt 0:00:04]} c5 {[%emt 0:00:27]} 2. e4 {[%emt 0:01:02]} d6 {[%emt 0:00:11]} 3. g3 {[%emt 0:00:05]} Nf6 {[%emt 0:03:52]} 4. Nc3 {[%emt 0:00:22]} Nc6 {[%emt 0:00:35]} 5. Bg2 {[%emt 0:00:14]} g6 {[%emt 0:00:24]} 6. d3 {[%emt 0:00:37]} Bg7 {[%emt 0:00:52]} 7. O-O {[%emt 0:00:24]} O-O {[%emt 0:01:42]} 8. h3 {[%emt 0:00:10]} Rb8 {[%emt 0:06:33]} 9. a4 {[%emt 0:00:27]} a6 {[%emt 0:01:33]} 10. Be3 {[%emt 0:00:11]} e5 {[%emt 0:08:49] CPLX 2.2 2 (Bc8-d7) (=2) has lost popularity (10...b5).} 11. Ne2 {[%emt 0:07:28][%cal Bc3e2,Be2f4,Bf4d5][%mdl 32] CPLX 2.1 19 (Nf3-h2) (=19). B25: Closed Sicilian: 3 g3, lines without early Be3.} b6 {[%emt 0:08:05] BESTDEEP} 12. Nd2 {[%emt 0:01:21] [#] BESTDEEP} d5 $146 {[%emt 0:03:24] CPLX 2.1 32 (h7-h6) (=11)} ({Predecessor:} 12... b5 13. axb5 axb5 14. c3 Be6 15. f4 exf4 16. Nxf4 Ne5 17. Qe2 Qd7 18. d4 Bc4 19. Nxc4 Nxc4 {1-0 (47) Yashas,D (2201)-Mulay,P (1983) Barbera del Valles 2016}) 13. Bg5 {[%emt 0:00:57] CPLX 2.3. The position is equal.} d4 {[%emt 0:05:06] CPLX 2.8} (13... Nb4 {is more complex.} 14. c3 Nxd3 15. exd5 h6) 14. f4 {[%emt 0:00:48] CPLX 2.5} Qc7 {[%emt 0:02:11] BESTDEEP} 15. fxe5 {[%emt 0:03:17] BESTDEEP} Nd7 {[%emt 0:01:42] CPLX 2.9} 16. Nf4 {[%emt 0:00:27] BESTDEEP} Qxe5 {[%emt 0:05:56] CPLX 2.5} 17. Nf3 {[%emt 0:02:29] CPLX 2.6} Qd6 {[%emt 0:00:55] Hoping for ...h6. CPLX 2.7} 18. Nd5 {[%emt 0:00:27] BESTDEEP} f6 {[%emt 0:00:41] CPLX 2.7 7 (Bc8-b7) (=5)} (18... Qxg3 $2 19. Bf4 Qxf4 20. Nxf4 $18) 19. Bf4 {[%emt 0:00:45] CPLX 2.8} Nde5 {[%emt 0:01:20] CPLX 3.1} 20. c3 {[%emt 0:04:27] BESTDEEP} g5 {[%emt 0:04:17] CPLX 3.2 1 (f6-f5) (=4)} 21. Nxe5 {[%emt 0:03:45] BESTDEEP} Nxe5 {[%emt 0:00:45] RECAPT} 22. Bxe5 {[%emt 0:05:29] RECAPT 15 (Bf4-d2) (=3)} Qxe5 {[%emt 0:00:31] RECAPT} 23. Kh2 {[%emt 0:01:33] CPLX 2.7} Kh8 {[%emt 0:05:07] CPLX 3.6 0 (Rf8-f7) (=3)} 24. c4 {[%emt 0:01:31] BESTDEEP} a5 {[%emt 0:02:08] CPLX 3.4 6 (f6-f5) (=3)} 25. Qh5 {[%emt 0:05:11] CPLX 3.4 6 (b2-b3) (=3)} Be6 {[%emt 0:03:22] CPLX 3.9 26 (Bc8-d7) (=5)} 26. Rae1 {[%emt 0:01:05] CPLX 3.9} Bf7 {[%emt 0:02:29] CPLX 3.9 0 (Rb8-e8) (=4)} 27. Qd1 {[%emt 0:02:38] CPLX 3.8} Bg6 {[%emt 0:02:50] RELBLUND 74 (Qe5-d6) (=8)} (27... Qd6 $1 $11 {keeps the balance.}) 28. Bf3 $1 $16 {[%emt 0:00:46][%cal Bg2f3,Bf3h5,Bh5g4,Bg4f5,Bf5g6][%mdl 32] DEEPSTRONG} h6 {[%emt 0:00:43] CPLX 3.0 58 (Qe5-e8) (=11)} (28... Qe8 $142) 29. Bh5 {[%emt 0:01:11] CPLX 3.0} Bh7 {[%emt 0:00:08] CPLX 3.5} 30. Bg4 {[%emt 0:01:16] White is more active. CPLX 3.2 5 (Re1-e2) (=2)} Qd6 {[%emt 0:02:41] [#] CPLX 3.1 51 (Bh7-g8) (=12)} (30... Bg8 $16 31. Rf2 Kh7) 31. Bf5 $1 $18 {[%emt 0:02:12] CPLX 3.1} Bg8 {[%emt 0:00:14] CPLX 3.5} 32. Qh5 {[%emt 0:01:35] CPLX 3.1} Bf7 {[%emt 0:02:36] [#] CPLX 3.5 56 (Rb8-e8) (=14)} (32... Rbe8 {was necessary.} 33. Qg6 Qe5) 33. Bg6 $1 {[%emt 0:00:08] DEEPSTRONG} Bg8 {[%emt 0:09:47] CPLX 4.0 29 (Bf7xg6) (=14)} 34. Rf5 {[%emt 0:02:04][%cal Od5f6] CPLX 3.5 26 (Rf1-f2) (=3)} Be6 {[%emt 0:01:08] CPLX 3.6 7 (Qd6-d7) (=14)} 35. Rf2 {[%emt 0:02:09] CPLX 4.1 34 (Re1-f1) (=4)} Rb7 {[%emt 0:01:44] CPLX 4.2 8 (Qd6-e5) (=14)} 36. Ref1 {[%emt 0:02:53][%cal Rf2f6] Black must now prevent Rxf6. CPLX 4.2} Qe5 {[%emt 0:04:02] CPLX 4.3} 37. h4 {[%emt 0:03:33] BESTDEEP} Kg8 {[%emt 0:02:32] BESTDEEP} 38. hxg5 {[%emt 0:03:46] Dancing on a razor blade. CPLX 5.7 39 (Rf2-f3) (=5)} Bxd5 $2 {[%emt 0:02:22] Black cannot hold the game after this. BEVAL 400 (Qe5xg5) (=26)} (38... Qxg5 $16 39. b3 Rbb8) 39. Rf5 {[%emt 0:06:23][%mdl 64] Skewer, Deflection, Zwischenzug. BEVAL} ({Less strong is} 39. cxd5 Qxg5 40. Qxg5 hxg5 $16) 39... Qe7 {[%emt 0:01:36] BEVAL 0 (Qe5-c7) (=25)} 40. gxf6 {[%emt 0:02:04] BEVAL} Rxf6 {[%emt 0:00:35] BEVAL} 41. Rxf6 {[%emt 0:01:09] EVAL} Bxf6 {[%emt 0:00:08] EVAL} 42. cxd5 {[%emt 0:01:28] And now Bf5 would win. EVAL} Kg7 {[%emt 0:02:04] BEVAL 400 (c5-c4) (=35)} 43. Be8 {[%emt 0:01:01] Threatening mate with Qg6+. BEVAL} Kf8 {[%emt 0:00:52] RELBLUND 400 (Kg7-g8) (=46)} 44. Bc6 {[%emt 0:00:51] CPLX 5.0 4 (e4-e5) (=4)} Rb8 {[%emt 0:00:25] RELBLUND 7 (Kf8-g7) (=45)} 45. Qg6 {[%emt 0:00:16] Weighted Error Value: White=0.06 (flawless) /Black=0.32} 1-0

[Event "Vienna Championship 2022"]
[Site "Vienna"]
[Date "2022.09.19"]
[Round "3.5"]
[White "Peyrer, Konstantin"]
[Black "Leisch, Lukas"]
[Result "1-0"]
[ECO "D10"]
[WhiteElo "2402"]
[BlackElo "2409"]
[Annotator "TA"]
[PlyCount "95"]
[EventDate "2022.09.17"]
[EventType "tourn"]
[EventCountry "AUT"]
[SourceTitle "playchess.com"]
[Source "ChessBase"]
[SourceQuality "1"]
[TimeControl "5400+30"]

{[%evp 9,95,-12,-14,-17,-18,-48,-6,-16,-22,-29,-18,-39,27,20,9,16,20,13,33,45,64,55,75,43,43,43,37,41,45,48,54,43,57,45,81,75,92,92,95,95,95,95,95,95,103,94,122,119,134,126,197,154,216,203,204,154,250,240,237,231,262,214,230,214,193,185,262,262,2118,2127,2055,1722,29989,2016,29974,29975,29976,29976,29976,29977,29977,29978,29977,29978,29992,29993,29997,29998]} 1. d4 {[%emt 0:00:10]} d5 {[%emt 0:00:18]} 2. c4 {[%emt 0:00:06]} c6 {[%emt 0:00:05]} 3. Bf4 {[%emt 0:00:11]} dxc4 {[%emt 0:01:03]} 4. a4 {[%emt 0:00:16]} Nf6 {[%emt 0:03:20]} 5. Nc3 {[%emt 0:00:15]} Nd5 {[%emt 0:01:01] CPLX 2.3} 6. Bg3 {[%emt 0:00:07] CPLX 2.8. D10: Slav Defence: 3 cxd5 (without early Nf3) and 3 Nc3.} Qa5 {[%emt 0:11:11]} 7. Qd2 {[%emt 0:03:49] CPLX 2.8 30 (e2-e4) (=15)} (7. e4 {seems wilder.} Nxc3 8. Qd2 Nd7 9. Bxc4 b5 10. Be2) 7... Nd7 {[%emt 0:05:26][%cal Oe7e5] Threatening ...e5! CPLX 2.7 42 (e7-e5) (=14)} (7... e5 $5) 8. e4 {[%emt 0:01:57] CPLX 2.6. The position is equal.} (8. e3 {is more complex.} e5 9. Bxc4 exd4 10. Qxd4 N7b6 11. Bxd5 Nxd5 12. Nf3) 8... Nxc3 {[%emt 0:00:22] EASY} 9. bxc3 {[%emt 0:05:19] [#] RECAPT 7 (Bf1xc4) (=9)} b5 $146 {[%emt 0:00:48] CPLX 2.3 11 (Nd7-b6) (=11)} ({Predecessor:} 9... Nb6 10. Nf3 g6 11. Ra2 h5 12. Bc7 Bh6 13. Qc2 Be6 14. Be2 Rc8 15. Bxb6 axb6 {½-½ (40) Gulbis,H (2209)-Deskin,G (2205) ICCF email 2019}) 10. Qb2 {[%emt 0:08:08] CPLX 2.5 21 (Ng1-f3) (=12)} Qb6 {[%emt 0:08:27] MISSDEEP-b5xa4 66 (b5xa4) (=20)} (10... bxa4 $15 11. Bxc4 Nb6) 11. Nf3 $11 {[%emt 0:04:05][%mdl 1024] White has compensation. CPLX 2.5} e6 {[%emt 0:01:49] CPLX 2.5 0 (a7-a6) (=17)} 12. Be2 {[%emt 0:00:59] CPLX 2.6} Be7 {[%emt 0:00:38] CPLX 2.7} 13. O-O {[%emt 0:00:38] BESTDEEP} O-O {[%emt 0:01:37] CPLX 2.7 20 (a7-a6) (=15)} 14. Rfb1 {[%emt 0:01:47][%cal Ra4b5] CPLX 2.7} Nf6 {[%emt 0:11:20] CPLX 2.7 19 (Bc8-a6) (=16)} 15. Qc2 {[%emt 0:07:11] CPLX 2.8 9 (Bg3-h4) (=7)} Nh5 {[%emt 0:02:07] CPLX 2.8 20 (a7-a5) (=16)} 16. Bxc4 {[%emt 0:03:24][%cal Ra4b5] CPLX 3.0 32 (Bg3-e5) (=9)} Nxg3 {[%emt 0:00:12] EASY} 17. hxg3 {[%emt 0:00:06][%cal Ra4b5] RECAPT} Bd7 {[%emt 0:01:03] CPLX 3.0} 18. Bd3 {[%emt 0:02:07] BESTDEEP} a5 {[%emt 0:19:23] CPLX 2.7} 19. c4 $36 {[%emt 0:09:00][%cal Bc3c4,Bc4c5][%mdl 2080] White has the initiative. BESTDEEP} b4 {[%emt 0:00:59] CPLX 2.8} 20. c5 {[%emt 0:00:20] CPLX 2.6} Qc7 {[%emt 0:00:36] CPLX 2.8 14 (Qb6-d8) (=12)} 21. e5 {[%emt 0:00:10] CPLX 2.5} h6 {[%emt 0:01:34] CPLX 2.8 36 (Kg8-h8) (=13)} 22. Nd2 {[%emt 0:03:41][%cal Bf3d2,Bd2e4,Be4d6][%mdl 32] CPLX 2.7} Bc8 {[%emt 0:00:35] CPLX 2.7 17 (f7-f6) (=14)} 23. Ne4 {[%emt 0:01:12] BESTDEEP} Ba6 {[%emt 0:00:37] CPLX 2.5} 24. Bxa6 {[%emt 0:00:30] CPLX 2.7} Rxa6 {[%emt 0:00:01] RECAPT} 25. Qe2 {[%emt 0:00:12] BESTDEEP} Raa8 {[%emt 0:00:58] CPLX 2.6} 26. Rb3 {[%emt 0:02:39] BESTDEEP} Qa7 {[%emt 0:01:18] CPLX 2.5 8 (Qc7-d7) (=12)} 27. Nd6 {[%emt 0:09:31] CPLX 2.5} Qa6 {[%emt 0:02:28] CPLX 2.7 28 (f7-f6) (=12)} 28. Qc2 {[%emt 0:00:34] White has more active pieces. CPLX 3.0} Rad8 {[%emt 0:00:58] CPLX 3.4 15 (Qa6-a7) (=12)} 29. Re1 {[%emt 0:02:37] CPLX 3.4} Rd7 {[%emt 0:00:36] CPLX 3.5 71 (Qa6-a7) (=15)} (29... Qa7 $16) 30. Rf3 {[%emt 0:00:35] CPLX 3.4 43 (g3-g4) (=6)} Bd8 {[%emt 0:02:52] CPLX 4.1 62 (Qa6-a8) (=17)} (30... Qa8 $16 {was worth a try.} 31. Qe4 Qa6) 31. Qb3 {[%emt 0:01:11] CPLX 4.1 13 (g3-g4) (=6)} Bc7 {[%emt 0:02:23] CPLX 3.2 1 (Bd8-e7) (=16)} 32. Rfe3 {[%emt 0:02:08][%cal Bf3e3,Be3e4,Be4g4][%mdl 32] CPLX 3.2 50 (g3-g4) (=8)} Bd8 {[%emt 0:02:38] CPLX 2.9 96 (Bc7xd6) (=19)} (32... Bxd6 $16 33. exd6 (33. cxd6 Re8 $16) 33... Qc8) 33. f4 $18 {[%emt 0:01:03] CPLX 2.8} Be7 {[%emt 0:00:33] CPLX 2.9} 34. g4 {[%emt 0:00:26] BESTDEEP} Qa7 {[%emt 0:01:01] CPLX 2.9 31 (Qa6-a8) (=19)} 35. Re4 {[%emt 0:02:28] CPLX 2.8 48 (Re3-h3) (=8)} Rdd8 {[%emt 0:01:53] [#] CPLX 2.8 16 (Qa7-a8) (=18)} 36. R1e3 $1 {[%emt 0:03:23] BESTDEEP} Qd7 {[%emt 0:00:40] CPLX 2.8} 37. Rh3 {[%emt 0:01:48] CPLX 2.7} Rb8 {[%emt 0:05:15] CPLX 2.9 77 (f7-f6) (=20)} (37... f6 $142 38. Qc4 Kh7) 38. g5 {[%emt 0:02:23] BESTDEEP} hxg5 $2 {[%emt 0:02:43] BEVAL 400 (Be7-d8) (=31)} (38... Bd8 39. Qb1 (39. gxh6 g6 $18) 39... Kh8) 39. fxg5 {[%emt 0:00:07] BEVAL} Bxg5 {[%emt 0:01:01] BEVAL} 40. Rg4 {[%emt 0:00:26] BEVAL 333 (Qb3-g3) (=17)} Qe7 {[%emt 0:03:50] RELBLUND 400 (f7-f6) (=40)} 41. Qb1 {[%emt 0:00:21] BEVAL 400 (Qb3-g3) (=27)} (41. Qg3 $142 f6 42. Qh2 Qxd6 43. cxd6 Kf7 44. Rh7 Rg8 45. Qh5+ Kf8 46. exf6) 41... f5 {[%emt 0:01:42] MISS-g7-g6 400 (g7-g6) (=50)} 42. exf6 $1 {[%emt 0:00:25] EASY. White mates.} gxf6 {[%emt 0:00:06] [#] RECAPT} 43. Rxg5+ $1 {[%emt 0:01:04][%mdl 512] CPLX 5.0 0 (Qb1-g6) (=26)} fxg5 {[%emt 0:00:02] RECAPT} 44. Qg6+ {[%emt 0:00:10] EASY} Qg7 {[%emt 0:00:05] LEGAL} 45. Qxe6+ {[%emt 0:00:03] EASY} Rf7 {[%emt 0:00:05] EASY} 46. Nxf7 {[%emt 0:00:18][%mdl 64] Discovered Attack. EASY} Qxd4+ {[%emt 0:01:27] RELBLUND 14 (Qg7xf7) (=44)} 47. Kh1 {[%emt 0:00:07] EASY} Qf4 {[%emt 0:04:19] RELBLUND 4 (Kg8-g7) (=43)} 48. Nxg5+ {[%emt 0:00:12] Weighted Error Value: White=0.08 (flawless) /Black=0.48} 1-0

[Event "Vienna Championship 2022"]
[Site "Vienna"]
[Date "2022.09.20"]
[Round "4.1"]
[White "Schwabeneder, Florian"]
[Black "Leisch, Lukas"]
[Result "1/2-1/2"]
[WhiteElo "2417"]
[BlackElo "2409"]
[Annotator "TA"]
[PlyCount "32"]
[EventDate "2022.09.17"]
[EventType "tourn"]
[EventCountry "AUT"]
[SourceTitle "playchess.com"]
[Source "ChessBase"]
[SourceQuality "1"]
[TimeControl "5400+30"]

{[%evp 11,17,0,2,-9,8,14,12,8]} 1. e4 {[%emt 0:01:24]} c6 {[%emt 0:00:07]} 2. d4 {[%emt 0:00:28]} d5 {[%emt 0:00:06]} 3. e5 {[%emt 0:00:43]} Bf5 {[%emt 0:00:08]} 4. h4 {[%emt 0:00:19]} h5 {[%emt 0:00:13]} 5. Bd3 {[%emt 0:00:18]} Bxd3 {[%emt 0:00:09]} 6. Qxd3 {[%emt 0:00:12]} e6 {[%emt 0:00:06] CPLX 2.0. The position is equal.} 7. Bg5 {[%emt 0:00:27] CPLX 2.0 11 (Ng1-f3) (=11). B12: Caro-Kann: Advance Variation.} Qa5+ {[%emt 0:00:18] CPLX 2.5 17 (Qd8-b6) (=9)} 8. Nd2 {[%emt 0:00:16] BESTDEEP} Qa6 {[%emt 0:00:09] CPLX 2.3 0 (c6-c5) (=6)} 9. c4 {[%emt 0:00:24] [#] Not much happened in this game.  Weighted Error Value: White=0.04 (flawless) /Black=0.06 (flawless)} {Predecessor:} Ne7 $146 10. Ne2 Nd7 11. O-O Nf5 12. Ng3 g6 13. Nxf5 gxf5 14. b3 Ba3 15. Qc2 Nf8 16. cxd5 cxd5 {0-1 (42) Matlakov,M (2674)-Nakamura,H (2750) Chess.com INT 2022} 1/2-1/2

[Event "Vienna Championship 2022"]
[Site "Vienna"]
[Date "2022.09.20"]
[Round "4.2"]
[White "Kruckenhauser, Arthur"]
[Black "Peyrer, Konstantin"]
[Result "1-0"]
[ECO "C49"]
[WhiteElo "2289"]
[BlackElo "2402"]
[Annotator "ChessBase"]
[PlyCount "69"]
[EventDate "2022.09.17"]
[EventType "tourn"]
[EventCountry "AUT"]
[SourceTitle "playchess.com"]
[Source "ChessBase"]
[SourceQuality "1"]
[TimeControl "5400+30"]

1. e4 {[%emt 0:01:04]} e5 {[%emt 0:00:08]} 2. Nf3 {[%emt 0:00:25]} Nc6 {[%emt 0:00:07]} 3. Nc3 {[%emt 0:00:17]} Nf6 {[%emt 0:00:08]} 4. Bb5 {[%emt 0:00:10]} Bb4 {[%emt 0:00:24]} 5. O-O {[%emt 0:00:10]} O-O {[%emt 0:00:15]} 6. d3 {[%emt 0:00:03]} d6 {[%emt 0:00:22]} 7. Ne2 {[%emt 0:00:05]} Ne7 {[%emt 0:00:51]} 8. Ng3 {[%emt 0:01:36]} c6 {[%emt 0:00:57]} 9. Ba4 {[%emt 0:00:04]} Ng6 {[%emt 0:00:19]} 10. c3 {[%emt 0:00:05]} Ba5 {[%emt 0:00:39]} 11. d4 {[%emt 0:00:14]} Bc7 {[%emt 0:11:51]} 12. Bc2 {[%emt 0:06:28]} Be6 {[%emt 0:02:31]} 13. Re1 {[%emt 0:03:18]} Qd7 {[%emt 0:06:55]} 14. Bg5 {[%emt 0:06:42]} Ne8 {[%emt 0:00:30]} 15. d5 {[%emt 0:04:36]} cxd5 {[%emt 0:00:14]} 16. exd5 {[%emt 0:00:06]} Bg4 {[%emt 0:00:04]} 17. h3 {[%emt 0:00:22]} Bxf3 {[%emt 0:00:06]} 18. Qxf3 {[%emt 0:00:03]} Bd8 {[%emt 0:03:11]} 19. h4 {[%emt 0:18:02]} h6 {[%emt 0:06:01]} 20. Bxd8 {[%emt 0:01:17]} Qxd8 {[%emt 0:00:27]} 21. h5 {[%emt 0:03:19]} Ne7 {[%emt 0:01:20]} 22. Qd3 {[%emt 0:06:09]} f5 {[%emt 0:04:32]} 23. f4 {[%emt 0:02:15]} Qb6+ {[%emt 0:01:13]} 24. Kh1 {[%emt 0:01:22]} e4 {[%emt 0:00:40]} 25. Nxe4 {[%emt 0:04:04]} fxe4 {[%emt 0:00:07]} 26. Rxe4 {[%emt 0:01:10]} Nf5 {[%emt 0:00:21]} 27. Re2 {[%emt 0:03:08]} Qa6 {[%emt 0:03:04]} 28. c4 {[%emt 0:02:27]} Rc8 {[%emt 0:02:15]} 29. b3 {[%emt 0:10:31]} b5 {[%emt 0:05:09]} 30. Rae1 {[%emt 0:05:55]} bxc4 {[%emt 0:03:05]} 31. bxc4 {[%emt 0:00:06]} Qb6 {[%emt 0:00:13]} 32. Qh3 {[%emt 0:01:12]} Nf6 {[%emt 0:04:04]} 33. Qxf5 {[%emt 0:01:13]} Rxc4 {[%emt 0:00:20]} 34. Re7 {[%emt 0:01:35]} Qf2 {[%emt 0:02:28]} 35. Qg6 {[%emt 0:02:02]} 1-0

[Event "Vienna Championship 2022"]
[Site "Vienna"]
[Date "2022.09.20"]
[Round "4.3"]
[White "Halvax, Georg"]
[Black "Stanec, Nikolaus"]
[Result "1/2-1/2"]
[WhiteElo "2423"]
[BlackElo "2458"]
[Annotator "TA"]
[PlyCount "45"]
[EventDate "2022.09.17"]
[EventType "tourn"]
[EventCountry "AUT"]
[SourceTitle "playchess.com"]
[Source "ChessBase"]
[SourceQuality "1"]
[TimeControl "5400+30"]

{[%evp 13,14,41,64]} 1. d4 {[%emt 0:00:17]} Nf6 {[%emt 0:00:07]} 2. c4 {[%emt 0:00:26]} d6 {[%emt 0:00:14]} 3. Nc3 {[%emt 0:00:54]} e5 {[%emt 0:00:31]} 4. Nf3 {[%emt 0:00:20]} Nbd7 {[%emt 0:00:37]} 5. g3 {[%emt 0:00:14]} Be7 {[%emt 0:01:10]} 6. Bg2 {[%emt 0:00:14]} O-O {[%emt 0:00:22]} 7. O-O {[%emt 0:00:11]} c6 {[%emt 0:00:19] [#]} {Predecessor:} 8. e4 $146 {A55: Old Indian Defence with Nf3 and e4.} a6 9. a4 a5 10. h3 Ne8 11. d5 Nc7 12. Be3 Na6 13. Ne1 Ndc5 14. Nd3 Re8 15. Nxc5 Nxc5 16. Bxc5 dxc5 17. Qc2 Qc7 18. Rad1 Bd7 19. Rd3 Rad8 20. Rfd1 Bc8 21. Qd2 Rd6 22. Kh2 Rh6 23. d6 {1-0 (23) Grachev,B (2621)-Khismatullin,D (2611) Sochi 2019} 1/2-1/2

[Event "Vienna Championship 2022"]
[Site "Vienna"]
[Date "2022.09.20"]
[Round "4.4"]
[White "Baumegger, Siegfried"]
[Black "Atzl, Florian"]
[Result "1-0"]
[ECO "B42"]
[WhiteElo "2447"]
[BlackElo "2155"]
[Annotator "ChessBase"]
[PlyCount "43"]
[EventDate "2022.09.17"]
[EventType "tourn"]
[EventCountry "AUT"]
[SourceTitle "playchess.com"]
[Source "ChessBase"]
[SourceQuality "1"]
[TimeControl "5400+30"]

1. e4 {[%emt 0:00:09]} c5 {[%emt 0:00:23]} 2. Nf3 {[%emt 0:00:21]} e6 {[%emt 0:00:15]} 3. d4 {[%emt 0:00:26]} cxd4 {[%emt 0:00:06]} 4. Nxd4 {[%emt 0:00:03]} a6 {[%emt 0:01:19]} 5. Bd3 {[%emt 0:00:10]} Nf6 {[%emt 0:00:12]} 6. O-O {[%emt 0:00:07]} d6 {[%emt 0:00:11]} 7. c4 {[%emt 0:00:24]} Be7 {[%emt 0:01:14]} 8. Nc3 {[%emt 0:04:52]} b6 {[%emt 0:00:36]} 9. b3 {[%emt 0:01:12]} Bb7 {[%emt 0:00:12]} 10. Bb2 {[%emt 0:00:18]} Nbd7 {[%emt 0:01:26]} 11. Qe2 {[%emt 0:00:35]} Qc7 {[%emt 0:01:58]} 12. f4 {[%emt 0:05:29]} h5 {[%emt 0:04:09]} 13. Rae1 {[%emt 0:04:33]} h4 {[%emt 0:11:00]} 14. Nd5 {[%emt 0:15:52]} exd5 {[%emt 0:11:59]} 15. exd5 {[%emt 0:00:29]} O-O {[%emt 0:02:40]} 16. Nf5 {[%emt 0:00:13]} Rfe8 {[%emt 0:02:06]} 17. Nxe7+ {[%emt 0:03:14]} Kf8 {[%emt 0:02:32]} 18. Rf3 {[%emt 0:28:12]} Nc5 {[%emt 0:18:53]} 19. Bxf6 {[%emt 0:01:11]} gxf6 {[%emt 0:00:06]} 20. Re3 {[%emt 0:00:42]} Nxd3 {[%emt 0:03:20]} 21. Qh5 {[%emt 0:03:28]} Ne5 {[%emt 0:01:21]} 22. Nf5 {[%emt 0:00:13]} 1-0

[Event "Vienna Championship 2022"]
[Site "Vienna"]
[Date "2022.09.20"]
[Round "4.5"]
[White "Vitouch, Anatol"]
[Black "Steindl, Johannes"]
[Result "1/2-1/2"]
[ECO "A48"]
[WhiteElo "2252"]
[BlackElo "2327"]
[Annotator "ChessBase"]
[PlyCount "41"]
[EventDate "2022.09.17"]
[EventType "tourn"]
[EventCountry "AUT"]
[SourceTitle "playchess.com"]
[Source "ChessBase"]
[SourceQuality "1"]
[TimeControl "5400+30"]

1. d4 {[%emt 0:00:02]} Nf6 {[%emt 0:01:16]} 2. Nf3 {[%emt 0:00:07]} g6 {[%emt 0:00:21]} 3. Bg5 {[%emt 0:00:15]} Bg7 {[%emt 0:00:28]} 4. Nbd2 {[%emt 0:00:07]} O-O {[%emt 0:00:15]} 5. c3 {[%emt 0:00:08]} d6 {[%emt 0:03:44]} 6. e4 {[%emt 0:00:27]} c5 {[%emt 0:00:58]} 7. dxc5 {[%emt 0:00:14]} dxc5 {[%emt 0:00:04]} 8. Be2 {[%emt 0:00:24]} Nc6 {[%emt 0:04:53]} 9. O-O {[%emt 0:00:13]} Qc7 {[%emt 0:03:08]} 10. h3 {[%emt 0:00:28]} Rd8 {[%emt 0:06:50]} 11. Qc2 {[%emt 0:00:13]} Na5 {[%emt 0:00:46]} 12. Nc4 {[%emt 0:10:08]} Be6 {[%emt 0:02:06]} 13. Nxa5 {[%emt 0:09:52]} Qxa5 {[%emt 0:00:04]} 14. a4 {[%emt 0:02:20]} Qc7 {[%emt 0:03:56]} 15. Be3 {[%emt 0:11:30]} b6 {[%emt 0:03:03]} 16. Rfe1 {[%emt 0:06:30]} Bd7 {[%emt 0:01:22]} 17. Nd2 {[%emt 0:03:01]} Bc6 {[%emt 0:00:36]} 18. Bb5 {[%emt 0:07:23]} Nd7 {[%emt 0:19:42]} 19. Nc4 {[%emt 0:07:58]} a6 {[%emt 0:01:18]} 20. Bxc6 {[%emt 0:00:19]} Qxc6 {[%emt 0:00:03]} 21. Bg5 {[%emt 0:02:46]} 1/2-1/2